[Event "*** Monthly 3|2 Blitz Masters"]
[Site "Chess.com"]
[Date "2014.10.28"]
[Round "4"]
[White "THORK"]
[Black "jbj"]
[Result "1-0"]
[WhiteElo "2164"]
[BlackElo "2264"]
[TimeControl "180+2"]
[EndTime "12:41:30 PDT"]
[Termination "THORK won by resignation"]

1. e4 {[%clk 0:03:00]} 1... d6 {[%clk 0:02:55.7]} 2. d4 {[%clk 0:02:59.9]} 2...
Nf6 {[%clk 0:02:47.6]} 3. Nc3 {[%clk 0:03:00.7]} 3... e5 {[%clk 0:02:48.2]} 4.
Nf3 {[%clk 0:03:01.1]} 4... Nbd7 {[%clk 0:02:48.8]} 5. Bc4 {[%clk 0:03:02.3]}
5... Be7 {[%clk 0:02:48.9]} 6. O-O {[%clk 0:03:03.3]} 6... O-O {[%clk
0:02:49.6]} 7. Re1 {[%clk 0:03:03]} 7... a6 {[%clk 0:02:46.7]} 8. a4 {[%clk
0:03:03.9]} 8... b6 {[%clk 0:02:48]} 9. Ba2 {[%clk 0:03:00.3]} 9... Bb7 {[%clk
0:02:48.7]} 10. Bg5 {[%clk 0:02:54.4]} 10... c6 {[%clk 0:02:42.4]} 11. Bxf6
{[%clk 0:02:47.1]} 11... Bxf6 {[%clk 0:02:42.7]} 12. d5 {[%clk 0:02:48.5]} 12...
Nc5 {[%clk 0:02:32.7]} 13. dxc6 {[%clk 0:02:47]} 13... Bxc6 {[%clk 0:02:32.7]}
14. Bd5 {[%clk 0:02:48.5]} 14... Qd7 {[%clk 0:02:23.9]} 15. Bxc6 {[%clk
0:02:48.3]} 15... Qxc6 {[%clk 0:02:25.8]} 16. Nd5 {[%clk 0:02:50.2]} 16... Bd8
{[%clk 0:02:25]} 17. b4 {[%clk 0:02:46.7]} 17... Nxa4 {[%clk 0:02:22]} 18. Qd3
{[%clk 0:02:35.3]} 18... b5 {[%clk 0:02:21.6]} 19. Nd2 {[%clk 0:02:26.1]} 19...
Nb6 {[%clk 0:02:21.1]} 20. c4 {[%clk 0:02:25.1]} 20... bxc4 {[%clk 0:02:19.5]}
21. Nxc4 {[%clk 0:02:26.2]} 21... Nxc4 {[%clk 0:02:19]} 22. Rec1 {[%clk
0:02:27.3]} 22... Rc8 {[%clk 0:02:16.2]} 23. Ne3 {[%clk 0:02:22.3]} 23... Bg5
{[%clk 0:01:07]} 24. Rxc4 {[%clk 0:02:22.7]} 24... Qb7 {[%clk 0:00:51.6]} 25.
Nd5 {[%clk 0:02:18.8]} 25... Rxc4 {[%clk 0:00:50.3]} 26. Qxc4 {[%clk 0:02:19.8]}
26... Rc8 {[%clk 0:00:51.1]} 27. Qe2 {[%clk 0:02:19.8]} 27... Rc1+ {[%clk
0:00:44.1]} 28. Rxc1 {[%clk 0:02:20]} 28... Bxc1 {[%clk 0:00:46]} 29. Qc4 {[%clk
0:02:11.7]} 29... Bg5 {[%clk 0:00:46.2]} 30. g3 {[%clk 0:02:13]} 30... h6 {[%clk
0:00:38.4]} 31. h4 {[%clk 0:02:13]} 31... Bd8 {[%clk 0:00:39.4]} 32. Kg2 {[%clk
0:02:12]} 32... Kf8 {[%clk 0:00:37.3]} 33. h5 {[%clk 0:02:08.5]} 33... Ke8
{[%clk 0:00:37.7]} 34. f4 {[%clk 0:02:09.5]} 34... exf4 {[%clk 0:00:37]} 35.
gxf4 {[%clk 0:02:10.7]} 35... Qb5 {[%clk 0:00:34.6]} 36. Qxb5+ {[%clk
0:02:04.1]} 36... axb5 {[%clk 0:00:36.5]} 37. Nc3 {[%clk 0:02:05.5]} 37... Kd7
{[%clk 0:00:28.7]} 38. Nxb5 {[%clk 0:02:06.6]} 38... Bb6 {[%clk 0:00:28.6]} 39.
Nc3 {[%clk 0:02:06.8]} 39... Bd4 {[%clk 0:00:24.2]} 40. Nd5 {[%clk 0:02:07.8]}
40... Kc6 {[%clk 0:00:21.9]} 41. f5 {[%clk 0:02:04.7]} 41... Kb5 {[%clk
0:00:20.2]} 42. Kf3 {[%clk 0:02:05.7]} 42... Kc4 {[%clk 0:00:20.5]} 43. Kf4
{[%clk 0:02:05.2]} 43... Be5+ {[%clk 0:00:20]} 44. Kf3 {[%clk 0:02:06.1]} 44...
Kb5 {[%clk 0:00:17.2]} 45. Kg4 {[%clk 0:02:05.3]} 45... Kc4 {[%clk 0:00:17.2]}
46. Kf3 {[%clk 0:01:48.3]} 46... Bd4 {[%clk 0:00:12.8]} 47. Ke2 {[%clk
0:01:49.5]} 47... Bb2 {[%clk 0:00:12]} 48. Ke3 {[%clk 0:01:47.2]} 48... Ba3
{[%clk 0:00:12.8]} 49. f6 {[%clk 0:01:35.6]} 49... gxf6 {[%clk 0:00:12.6]} 50.
Kf4 {[%clk 0:01:37.1]} 50... Bxb4 {[%clk 0:00:10.5]} 51. Nxf6 {[%clk 0:01:38.3]}
51... Bd2+ {[%clk 0:00:09.7]} 52. Kf5 {[%clk 0:01:39.4]} 52... Bg5 {[%clk
0:00:10]} 53. Nd5 {[%clk 0:01:33.5]} 53... Kd4 {[%clk 0:00:10.4]} 54. Nc7 {[%clk
0:01:24.4]} 54... Ke3 {[%clk 0:00:11.2]} 55. Ne8 {[%clk 0:01:24.4]} 55... Bf4
{[%clk 0:00:11.5]} 56. Nf6 {[%clk 0:01:20]} 56... Be5 {[%clk 0:00:10.1]} 57.
Ng4+ {[%clk 0:01:17.9]} 57... Kf3 {[%clk 0:00:07.7]} 58. Nxh6 {[%clk 0:01:19.2]}
58... f6 {[%clk 0:00:04.2]} 59. Nf7 {[%clk 0:01:18.9]} 59... Bf4 {[%clk
0:00:05.1]} 60. h6 {[%clk 0:01:19]} 60... Bxh6 {[%clk 0:00:02.6]} 61. Nxh6
{[%clk 0:01:20.3]} 61... Ke3 {[%clk 0:00:04.2]} 62. Ng4+ {[%clk 0:01:20.8]}
62... Kd4 {[%clk 0:00:05.5]} 63. Nxf6 {[%clk 0:01:22.2]} 63... Kc5 {[%clk
0:00:06.7]} 64. Ke6 {[%clk 0:01:23.6]} 64... Kc6 {[%clk 0:00:08.6]} 65. Ne8
{[%clk 0:01:24.6]} 65... Kc5 {[%clk 0:00:10]} 66. Nxd6 {[%clk 0:01:25.8]} 66...
Kd4 {[%clk 0:00:11.3]} 67. e5 {[%clk 0:01:27.4]} 67... Kc5 {[%clk 0:00:13.2]}
68. Nf7 {[%clk 0:01:28.5]} 1-0

[Event "*** Monthly 3|2 Blitz Masters"]
[Site "Chess.com"]
[Date "2014.10.28"]
[Round "4"]
[White "alexsuper1987"]
[Black "SabinaFoisor"]
[Result "0-1"]
[WhiteElo "2035"]
[BlackElo "2319"]
[TimeControl "180+2"]
[EndTime "12:41:55 PDT"]
[Termination "SabinaFoisor won by resignation"]

1. e4 {[%clk 0:02:50.3]} 1... e6 {[%clk 0:02:54.4]} 2. d4 {[%clk 0:02:51.2]}
2... d5 {[%clk 0:02:55]} 3. Nc3 {[%clk 0:02:52.5]} 3... Bb4 {[%clk 0:02:53]} 4.
e5 {[%clk 0:02:53.4]} 4... c5 {[%clk 0:02:53.8]} 5. Bd2 {[%clk 0:02:54.1]} 5...
Ne7 {[%clk 0:02:48.8]} 6. Nb5 {[%clk 0:02:28.9]} 6... Bxd2+ {[%clk 0:02:47.2]}
7. Qxd2 {[%clk 0:02:30]} 7... O-O {[%clk 0:02:48.3]} 8. dxc5 {[%clk 0:02:31.3]}
8... Nbc6 {[%clk 0:02:45.7]} 9. Nf3 {[%clk 0:02:32.2]} 9... Ng6 {[%clk
0:02:45.9]} 10. Qc3 {[%clk 0:02:31.2]} 10... Bd7 {[%clk 0:02:30.4]} 11. Bd3
{[%clk 0:02:23.4]} 11... b6 {[%clk 0:02:28.1]} 12. cxb6 {[%clk 0:02:23.4]} 12...
Qxb6 {[%clk 0:02:28.6]} 13. O-O {[%clk 0:02:05.6]} 13... Rac8 {[%clk 0:02:26]}
14. Nd6 {[%clk 0:01:58.9]} 14... Rc7 {[%clk 0:02:25.5]} 15. Nb5 {[%clk
0:01:41.2]} 15... Rcc8 {[%clk 0:02:22.6]} 16. Nd6 {[%clk 0:01:42.5]} 16... Rb8
{[%clk 0:02:23.8]} 17. Bxg6 {[%clk 0:01:23.6]} 17... fxg6 {[%clk 0:02:13.7]} 18.
Rab1 {[%clk 0:00:54.2]} 18... d4 {[%clk 0:02:04.5]} 19. Qc4 {[%clk 0:00:39]}
19... Nxe5 {[%clk 0:01:37.5]} 20. Nxe5 {[%clk 0:00:40]} 20... Qxd6 {[%clk
0:01:37.7]} 21. Nxd7 {[%clk 0:00:28.2]} 21... Qxd7 {[%clk 0:01:38.7]} 22. Rfe1
{[%clk 0:00:29.4]} 22... Rf6 {[%clk 0:01:30.8]} 23. Re4 {[%clk 0:00:28.5]} 23...
Rc8 {[%clk 0:01:13.9]} 24. Qb3 {[%clk 0:00:16.4]} 24... Kh8 {[%clk 0:00:59.6]}
25. Rd1 {[%clk 0:00:14.4]} 25... e5 {[%clk 0:00:49.8]} 26. c3 {[%clk 0:00:15.6]}
26... Qf5 {[%clk 0:00:48.3]} 27. Re2 {[%clk 0:00:11.9]} 27... d3 {[%clk
0:00:48]} 28. Red2 {[%clk 0:00:11.9]} 28... e4 {[%clk 0:00:49.3]} 29. Qb7 {[%clk
0:00:09.6]} 29... Rcf8 {[%clk 0:00:49.9]} 30. Qxa7 {[%clk 0:00:06.5]} 30... h5
{[%clk 0:00:47.3]} 31. Qe3 {[%clk 0:00:07.6]} 31... Qg4 {[%clk 0:00:44.5]} 32.
h3 {[%clk 0:00:08.6]} 32... Qe6 {[%clk 0:00:40.5]} 33. b3 {[%clk 0:00:08.5]}
33... Rf3 {[%clk 0:00:25.3]} 34. gxf3 {[%clk 0:00:08.9]} 34... Rxf3 {[%clk
0:00:26.4]} 35. Qg5 {[%clk 0:00:03]} 35... Qxh3 {[%clk 0:00:19.2]} 36. Qg2
{[%clk 0:00:03.3]} 36... Qf5 {[%clk 0:00:19.2]} 37. Re1 {[%clk 0:00:03.7]} 37...
Rf4 {[%clk 0:00:14.4]} 38. Re3 {[%clk 0:00:05]} 38... Kh7 {[%clk 0:00:14.4]} 39.
Rd1 {[%clk 0:00:05.7]} 39... g5 {[%clk 0:00:14.3]} 40. c4 {[%clk 0:00:06.7]}
40... h4 {[%clk 0:00:14.5]} 41. Kf1 {[%clk 0:00:06.4]} 41... Rg4 {[%clk
0:00:14.3]} 42. Qh3 {[%clk 0:00:07.7]} 42... Qf4 {[%clk 0:00:10.7]} 43. Rd2
{[%clk 0:00:07.6]} 43... Kh6 {[%clk 0:00:10.3]} 44. c5 {[%clk 0:00:08]} 44...
Kh5 {[%clk 0:00:11.7]} 45. c6 {[%clk 0:00:09]} 45... Qf6 {[%clk 0:00:11.6]} 46.
Rexd3 {[%clk 0:00:07.5]} 46... exd3 {[%clk 0:00:11.6]} 47. Qxd3 {[%clk
0:00:08.6]} 47... Qxc6 {[%clk 0:00:11.3]} 48. Qh7+ {[%clk 0:00:09.8]} 48... Qh6
{[%clk 0:00:12.5]} 49. Qxh6+ {[%clk 0:00:10.9]} 49... gxh6 {[%clk 0:00:13]} 50.
a4 {[%clk 0:00:12.1]} 50... h3 {[%clk 0:00:14.3]} 51. Rd3 {[%clk 0:00:13.1]}
51... Kh4 {[%clk 0:00:15.7]} 52. f3 {[%clk 0:00:14.6]} 52... Rg3 {[%clk
0:00:16.2]} 53. Rd4+ {[%clk 0:00:13.1]} 53... Kh5 {[%clk 0:00:17]} 54. a5 {[%clk
0:00:12.7]} 54... h2 {[%clk 0:00:17.9]} 55. Kf2 {[%clk 0:00:14.3]} 55... Rg1
{[%clk 0:00:18.6]} 56. a6 {[%clk 0:00:13.8]} 56... h1=Q {[%clk 0:00:19.3]} 57.
a7 {[%clk 0:00:15.2]} 57... Qg2+ {[%clk 0:00:19.8]} 58. Ke3 {[%clk 0:00:16.6]}
58... Re1+ {[%clk 0:00:20.5]} 59. Kd3 {[%clk 0:00:16.5]} 59... Qxf3+ {[%clk
0:00:21.7]} 0-1

[Event "*** Monthly 3|2 Blitz Masters"]
[Site "Chess.com"]
[Date "2014.10.28"]
[Round "4"]
[White "Danesz22"]
[Black "GeorgMeier"]
[Result "0-1"]
[WhiteElo "2396"]
[BlackElo "2541"]
[TimeControl "180+2"]
[EndTime "12:42:07 PDT"]
[Termination "GeorgMeier won by resignation"]

1. e4 {[%clk 0:03:00]} 1... e6 {[%clk 0:02:59.1]} 2. d4 {[%clk 0:03:00.6]} 2...
d5 {[%clk 0:03:00.5]} 3. Nc3 {[%clk 0:03:01.4]} 3... dxe4 {[%clk 0:03:02]} 4.
Nxe4 {[%clk 0:03:01.9]} 4... Nd7 {[%clk 0:03:03.9]} 5. Nf3 {[%clk 0:03:01.4]}
5... Ngf6 {[%clk 0:03:05.8]} 6. Nxf6+ {[%clk 0:03:02]} 6... Nxf6 {[%clk
0:03:07.7]} 7. c3 {[%clk 0:03:03]} 7... Be7 {[%clk 0:03:06.5]} 8. Bd3 {[%clk
0:03:03]} 8... O-O {[%clk 0:03:06.8]} 9. O-O {[%clk 0:03:03.6]} 9... b6 {[%clk
0:03:08.3]} 10. Bf4 {[%clk 0:03:00.1]} 10... Bb7 {[%clk 0:03:09.5]} 11. Re1
{[%clk 0:03:00.5]} 11... c5 {[%clk 0:03:07.9]} 12. dxc5 {[%clk 0:02:44.5]} 12...
Bxc5 {[%clk 0:03:07.5]} 13. Bc2 {[%clk 0:02:44.1]} 13... Qxd1 {[%clk 0:02:57.2]}
14. Raxd1 {[%clk 0:02:44.2]} 14... Bxf3 {[%clk 0:02:58]} 15. gxf3 {[%clk
0:02:44.9]} 15... Rfd8 {[%clk 0:02:58.4]} 16. Bc7 {[%clk 0:02:39.4]} 16... Rdc8
{[%clk 0:02:52.2]} 17. Be5 {[%clk 0:02:38.4]} 17... Rd8 {[%clk 0:02:46.8]} 18.
Bc7 {[%clk 0:02:38.4]} 18... Rd5 {[%clk 0:02:40.4]} 19. Rxd5 {[%clk 0:02:28.2]}
19... Nxd5 {[%clk 0:02:40.3]} 20. Be5 {[%clk 0:02:26]} 20... f6 {[%clk
0:02:14.9]} 21. Bg3 {[%clk 0:02:25.3]} 21... Kf7 {[%clk 0:02:15.3]} 22. Bb3
{[%clk 0:02:06.3]} 22... b5 {[%clk 0:02:06.2]} 23. a3 {[%clk 0:02:03.5]} 23...
a5 {[%clk 0:01:25.1]} 24. Rd1 {[%clk 0:01:58.2]} 24... Nb6 {[%clk 0:01:12.1]}
25. Bd6 {[%clk 0:01:51.7]} 25... Rc8 {[%clk 0:00:54.4]} 26. Bxc5 {[%clk
0:01:46.8]} 26... Rxc5 {[%clk 0:00:54.3]} 27. Rd6 {[%clk 0:01:47.3]} 27... Nc4
{[%clk 0:00:49.4]} 28. Bxc4 {[%clk 0:01:43]} 28... bxc4 {[%clk 0:00:41.6]} 29.
a4 {[%clk 0:01:43.5]} 29... h5 {[%clk 0:00:37.2]} 30. Rd7+ {[%clk 0:01:38.2]}
30... Kg6 {[%clk 0:00:37.6]} 31. Rb7 {[%clk 0:01:38.7]} 31... h4 {[%clk
0:00:30.7]} 32. h3 {[%clk 0:01:35.3]} 32... Kh6 {[%clk 0:00:22.2]} 33. Rb5
{[%clk 0:01:33.7]} 33... Rd5 {[%clk 0:00:23.3]} 34. f4 {[%clk 0:01:23.6]} 34...
Kg6 {[%clk 0:00:21.5]} 35. Kg2 {[%clk 0:01:22.6]} 35... Rd2 {[%clk 0:00:22.5]}
36. Rxa5 {[%clk 0:01:22.2]} 36... Rxb2 {[%clk 0:00:23.6]} 37. Rc5 {[%clk
0:01:23.1]} 37... Ra2 {[%clk 0:00:24.6]} 38. Rxc4 {[%clk 0:01:24]} 38... Kf5
{[%clk 0:00:25.6]} 39. Rc5+ {[%clk 0:01:14.3]} 39... Kxf4 {[%clk 0:00:24.8]} 40.
Rc4+ {[%clk 0:01:15.4]} 40... Kf5 {[%clk 0:00:22.3]} 41. Rxh4 {[%clk 0:01:15.7]}
41... e5 {[%clk 0:00:23.5]} 42. Rc4 {[%clk 0:01:04.7]} 42... g5 {[%clk
0:00:24.2]} 43. Kg3 {[%clk 0:01:04.6]} 43... Ke6 {[%clk 0:00:24.9]} 44. h4
{[%clk 0:01:05.1]} 44... Kd5 {[%clk 0:00:23.1]} 45. Rc8 {[%clk 0:00:59.1]} 45...
gxh4+ {[%clk 0:00:23.3]} 46. Kg2 {[%clk 0:00:50.1]} 46... Rxa4 {[%clk
0:00:23.3]} 47. Rd8+ {[%clk 0:00:44.7]} 47... Ke4 {[%clk 0:00:20.3]} 48. Rh8
{[%clk 0:00:43.4]} 48... Kd3 {[%clk 0:00:21.3]} 49. Rc8 {[%clk 0:00:27.6]} 49...
Rf4 {[%clk 0:00:20.1]} 50. Rc6 {[%clk 0:00:24.6]} 50... f5 {[%clk 0:00:19]} 51.
Rc5 {[%clk 0:00:24.2]} 51... e4 {[%clk 0:00:19.9]} 52. Ra5 {[%clk 0:00:17.6]}
52... Kxc3 {[%clk 0:00:18.2]} 53. Ra3+ {[%clk 0:00:18.3]} 53... Kd4 {[%clk
0:00:19.1]} 54. Ra4+ {[%clk 0:00:19.2]} 54... Ke5 {[%clk 0:00:20.3]} 55. Ra5+
{[%clk 0:00:20.1]} 55... Kf6 {[%clk 0:00:21.7]} 56. Ra8 {[%clk 0:00:20.7]} 56...
Rf3 {[%clk 0:00:21.8]} 57. Rg8 {[%clk 0:00:20.1]} 57... Ke5 {[%clk 0:00:19.9]}
58. Re8+ {[%clk 0:00:19.6]} 58... Kf4 {[%clk 0:00:19.5]} 59. Rh8 {[%clk
0:00:20]} 59... h3+ {[%clk 0:00:20]} 60. Kg1 {[%clk 0:00:20.7]} 60... Rd3 {[%clk
0:00:20.2]} 61. Rh4+ {[%clk 0:00:17.9]} 61... Kg5 {[%clk 0:00:20]} 62. Rh8
{[%clk 0:00:18.6]} 62... Kg4 {[%clk 0:00:21.6]} 63. Rg8+ {[%clk 0:00:18.6]}
63... Kf3 {[%clk 0:00:21.7]} 64. Rg3+ {[%clk 0:00:19.1]} 64... Ke2 {[%clk
0:00:22.9]} 65. Rg5 {[%clk 0:00:19.7]} 65... Rf3 {[%clk 0:00:24.2]} 0-1

[Event "*** Monthly 3|2 Blitz Masters"]
[Site "Chess.com"]
[Date "2014.10.28"]
[Round "4"]
[White "jcibarra"]
[Black "exoticprincess"]
[Result "0-1"]
[WhiteElo "2440"]
[BlackElo "2608"]
[TimeControl "180+2"]
[EndTime "12:43:05 PDT"]
[Termination "exoticprincess won by resignation"]

1. e4 {[%clk 0:02:55.8]} 1... c6 {[%clk 0:02:57.8]} 2. Nc3 {[%clk 0:02:55.9]}
2... d5 {[%clk 0:02:59.7]} 3. Nf3 {[%clk 0:02:56.9]} 3... dxe4 {[%clk
0:02:57.1]} 4. Nxe4 {[%clk 0:02:57.4]} 4... Nf6 {[%clk 0:02:58.5]} 5. Qe2 {[%clk
0:02:58.7]} 5... Nxe4 {[%clk 0:02:55.5]} 6. Qxe4 {[%clk 0:02:59.6]} 6... Qd5
{[%clk 0:02:56.5]} 7. Qf4 {[%clk 0:03:01]} 7... Qf5 {[%clk 0:02:52.4]} 8. Qe3
{[%clk 0:03:01.9]} 8... Qe6 {[%clk 0:02:48.8]} 9. Be2 {[%clk 0:03:00.6]} 9...
Qxe3 {[%clk 0:02:48]} 10. fxe3 {[%clk 0:03:02.5]} 10... g6 {[%clk 0:02:46]} 11.
d3 {[%clk 0:02:57.2]} 11... Bg7 {[%clk 0:02:47.9]} 12. e4 {[%clk 0:02:58.1]}
12... Na6 {[%clk 0:02:45.5]} 13. c3 {[%clk 0:02:57.1]} 13... Nc5 {[%clk
0:02:39.2]} 14. Be3 {[%clk 0:02:57.1]} 14... Na4 {[%clk 0:02:39.9]} 15. O-O-O
{[%clk 0:02:57.6]} 15... O-O {[%clk 0:02:36.7]} 16. Rd2 {[%clk 0:02:47.3]} 16...
Rd8 {[%clk 0:02:20.7]} 17. Bd1 {[%clk 0:02:47.6]} 17... Nb6 {[%clk 0:02:19.6]}
18. Bb3 {[%clk 0:02:47.6]} 18... Nd7 {[%clk 0:02:11]} 19. Ng5 {[%clk 0:02:36.9]}
19... e6 {[%clk 0:02:07.9]} 20. Rf1 {[%clk 0:02:34.1]} 20... Ne5 {[%clk
0:02:02.6]} 21. d4 {[%clk 0:02:09.4]} 21... Ng4 {[%clk 0:02:03.1]} 22. Bf4
{[%clk 0:02:10.8]} 22... Re8 {[%clk 0:01:10]} 23. h3 {[%clk 0:02:09.2]} 23...
Nh6 {[%clk 0:01:10.7]} 24. e5 {[%clk 0:02:02]} 24... Nf5 {[%clk 0:01:10.8]} 25.
g4 {[%clk 0:01:59.5]} 25... Ne7 {[%clk 0:01:11.1]} 26. Ne4 {[%clk 0:01:54]}
26... Nd5 {[%clk 0:01:11.6]} 27. Bg5 {[%clk 0:01:50.7]} 27... h6 {[%clk
0:01:09.4]} 28. Bh4 {[%clk 0:01:48.6]} 28... g5 {[%clk 0:01:10.2]} 29. Bg3
{[%clk 0:01:47.7]} 29... Bd7 {[%clk 0:01:09.9]} 30. Nd6 {[%clk 0:01:47.9]} 30...
Re7 {[%clk 0:01:08.4]} 31. Nxb7 {[%clk 0:01:44.6]} 31... Rf8 {[%clk 0:01:06.3]}
32. Rdf2 {[%clk 0:01:40.4]} 32... Ne3 {[%clk 0:00:59.2]} 33. Re1 {[%clk
0:01:39.9]} 33... Nd5 {[%clk 0:01:00.7]} 34. Nc5 {[%clk 0:01:40.6]} 34... Bc8
{[%clk 0:01:01.1]} 35. Bc4 {[%clk 0:01:36.5]} 35... a5 {[%clk 0:00:52.9]} 36. a4
{[%clk 0:01:36.3]} 36... Nb6 {[%clk 0:00:53.6]} 37. Bb3 {[%clk 0:01:37.5]} 37...
Nd5 {[%clk 0:00:54.5]} 38. Ne4 {[%clk 0:01:36.2]} 38... Ba6 {[%clk 0:00:55.2]}
39. Nc5 {[%clk 0:01:35.5]} 39... Bc8 {[%clk 0:00:54]} 40. Bc2 {[%clk 0:01:34.7]}
40... Ra7 {[%clk 0:00:52.7]} 41. h4 {[%clk 0:01:34.3]} 41... f6 {[%clk
0:00:49.4]} 42. exf6 {[%clk 0:01:31.9]} 42... Bxf6 {[%clk 0:00:51.3]} 43. Ne4
{[%clk 0:01:23.1]} 43... gxh4 {[%clk 0:00:44.5]} 44. Nxf6+ {[%clk 0:01:22.6]}
44... Nxf6 {[%clk 0:00:46.4]} 45. Bd6 {[%clk 0:01:18.5]} 45... Rff7 {[%clk
0:00:43.1]} 46. Bg6 {[%clk 0:01:16]} 46... Rfd7 {[%clk 0:00:42.5]} 47. Bc5
{[%clk 0:01:12]} 47... Kg7 {[%clk 0:00:42.5]} 48. Bxa7 {[%clk 0:00:43]} 48...
Kxg6 {[%clk 0:00:42.9]} 49. Bb6 {[%clk 0:00:44.1]} 49... Nxg4 {[%clk 0:00:42.2]}
50. Rxe6+ {[%clk 0:00:43.7]} 50... Kg5 {[%clk 0:00:42.3]} 51. Rf8 {[%clk
0:00:43.1]} 51... Ba6 {[%clk 0:00:27.1]} 52. Bd8+ {[%clk 0:00:39.8]} 52... Rxd8
{[%clk 0:00:28.2]} 53. Rxd8 {[%clk 0:00:41.7]} 53... h3 {[%clk 0:00:30.1]} 54.
Rg8+ {[%clk 0:00:41.6]} 54... Kh4 {[%clk 0:00:31.5]} 55. Rxg4+ {[%clk
0:00:29.5]} 55... Kxg4 {[%clk 0:00:31.7]} 56. Rxh6 {[%clk 0:00:30]} 56... Bc4
{[%clk 0:00:32.3]} 57. Rxc6 {[%clk 0:00:26.5]} 57... Bf7 {[%clk 0:00:28.3]} 58.
Rh6 {[%clk 0:00:15.8]} 58... Bh5 {[%clk 0:00:29.1]} 59. Rf6 {[%clk 0:00:16.7]}
59... Kg3 {[%clk 0:00:29]} 60. Rf1 {[%clk 0:00:16.9]} 60... Bf3 {[%clk
0:00:30.4]} 61. Kd2 {[%clk 0:00:14.7]} 61... Kg2 {[%clk 0:00:30.8]} 62. Re1
{[%clk 0:00:12.4]} 62... Kf2 {[%clk 0:00:31.8]} 63. c4 {[%clk 0:00:12.3]} 63...
h2 {[%clk 0:00:32.5]} 64. d5 {[%clk 0:00:13.3]} 64... Bg2 {[%clk 0:00:33.1]} 65.
Re2+ {[%clk 0:00:14.6]} 65... Kg1 {[%clk 0:00:32.4]} 66. Re1+ {[%clk 0:00:12.1]}
66... Bf1 {[%clk 0:00:33.7]} 67. d6 {[%clk 0:00:13.6]} 67... h1=Q {[%clk
0:00:33.6]} 68. d7 {[%clk 0:00:15]} 68... Qh6+ {[%clk 0:00:33.5]} 69. Kc3 {[%clk
0:00:14.1]} 69... Qg7+ {[%clk 0:00:34.2]} 0-1

[Event "*** Monthly 3|2 Blitz Masters"]
[Site "Chess.com"]
[Date "2014.10.28"]
[Round "5"]
[White "Danesz22"]
[Black "mat_kolosowski"]
[Result "1-0"]
[WhiteElo "2461"]
[BlackElo "2340"]
[TimeControl "180+2"]
[EndTime "12:47:42 PDT"]
[Termination "Danesz22 won by resignation"]

1. e4 {[%clk 0:03:00]} 1... c5 {[%clk 0:02:57.8]} 2. Nf3 {[%clk 0:03:00.5]} 2...
e6 {[%clk 0:02:59.2]} 3. d4 {[%clk 0:03:00.7]} 3... cxd4 {[%clk 0:03:01.1]} 4.
Nxd4 {[%clk 0:03:01.8]} 4... Nc6 {[%clk 0:03:02.5]} 5. Nc3 {[%clk 0:03:02.5]}
5... Qc7 {[%clk 0:03:03.7]} 6. Be2 {[%clk 0:03:03.2]} 6... a6 {[%clk 0:03:04.8]}
7. O-O {[%clk 0:03:03.8]} 7... Nf6 {[%clk 0:03:06.2]} 8. Kh1 {[%clk 0:03:03.8]}
8... Nxd4 {[%clk 0:03:05.9]} 9. Qxd4 {[%clk 0:03:04.2]} 9... Bc5 {[%clk
0:03:07.8]} 10. Qd2 {[%clk 0:03:05.2]} 10... O-O {[%clk 0:03:02.9]} 11. Qg5
{[%clk 0:03:06]} 11... d6 {[%clk 0:02:54.3]} 12. Bd3 {[%clk 0:03:02.1]} 12... b5
{[%clk 0:02:18.2]} 13. f4 {[%clk 0:03:00.5]} 13... b4 {[%clk 0:02:14.8]} 14. e5
{[%clk 0:02:58.2]} 14... Nd7 {[%clk 0:02:08.4]} 15. Ne4 {[%clk 0:02:54.4]} 15...
h6 {[%clk 0:01:52.5]} 16. Qg3 {[%clk 0:02:44]} 16... dxe5 {[%clk 0:01:49.2]} 17.
fxe5 {[%clk 0:02:42.3]} 17... Bd4 {[%clk 0:01:35]} 18. Bxh6 {[%clk 0:02:21.1]}
18... Bxe5 {[%clk 0:01:35.9]} 19. Nf6+ {[%clk 0:02:15.5]} 19... Bxf6 {[%clk
0:01:36.6]} 20. Qxc7 {[%clk 0:02:16.1]} 20... gxh6 {[%clk 0:01:37.9]} 21. Rxf6
{[%clk 0:02:10.1]} 21... Nxf6 {[%clk 0:01:38]} 22. Qg3+ {[%clk 0:02:10.7]} 22...
Kh8 {[%clk 0:01:38.5]} 23. Qe5 {[%clk 0:02:11]} 1-0

[Event "*** Monthly 3|2 Blitz Masters"]
[Site "Chess.com"]
[Date "2014.10.28"]
[Round "5"]
[White "ilmago"]
[Black "HZMC92"]
[Result "0-1"]
[WhiteElo "1771"]
[BlackElo "2156"]
[TimeControl "180+2"]
[EndTime "12:50:34 PDT"]
[Termination "HZMC92 won by checkmate"]

1. e4 {[%clk 0:03:00]} 1... c5 {[%clk 0:02:54.7]} 2. Nf3 {[%clk 0:03:00.1]} 2...
d6 {[%clk 0:02:55.8]} 3. d4 {[%clk 0:03:01.6]} 3... cxd4 {[%clk 0:02:57.2]} 4.
Qxd4 {[%clk 0:03:02.8]} 4... Nc6 {[%clk 0:02:57.5]} 5. Bb5 {[%clk 0:03:03.9]}
5... Bd7 {[%clk 0:02:58.6]} 6. Bxc6 {[%clk 0:03:04.9]} 6... Bxc6 {[%clk
0:03:00.5]} 7. c4 {[%clk 0:03:06.3]} 7... Nf6 {[%clk 0:03:01.8]} 8. Nc3 {[%clk
0:03:06.5]} 8... g6 {[%clk 0:03:03]} 9. Be3 {[%clk 0:03:04.6]} 9... Bg7 {[%clk
0:03:04.2]} 10. Qd3 {[%clk 0:03:01]} 10... O-O {[%clk 0:03:04.9]} 11. O-O {[%clk
0:03:01.3]} 11... a6 {[%clk 0:03:04]} 12. Nd4 {[%clk 0:03:00.7]} 12... Rc8
{[%clk 0:03:02.5]} 13. Rac1 {[%clk 0:02:54.4]} 13... Qc7 {[%clk 0:02:56.9]} 14.
Rfd1 {[%clk 0:02:48.2]} 14... Rfd8 {[%clk 0:02:56.8]} 15. b4 {[%clk 0:02:42.9]}
15... Bd7 {[%clk 0:02:51.2]} 16. Nd5 {[%clk 0:02:29.9]} 16... Nxd5 {[%clk
0:02:52.1]} 17. exd5 {[%clk 0:02:30]} 17... e5 {[%clk 0:02:40]} 18. dxe6 {[%clk
0:02:29.6]} 18... Bxe6 {[%clk 0:02:41.2]} 19. Nxe6 {[%clk 0:02:29]} 19... fxe6
{[%clk 0:02:41.8]} 20. Bf4 {[%clk 0:02:24.4]} 20... e5 {[%clk 0:02:39.9]} 21.
Bg5 {[%clk 0:02:13.8]} 21... Rd7 {[%clk 0:02:41.1]} 22. c5 {[%clk 0:02:11.3]}
22... d5 {[%clk 0:02:39.8]} 23. Qb3 {[%clk 0:02:04]} 23... Qc6 {[%clk 0:02:41]}
24. Rc2 {[%clk 0:01:52]} 24... Kh8 {[%clk 0:02:39.5]} 25. Rcd2 {[%clk
0:01:52.2]} 25... d4 {[%clk 0:02:38.7]} 26. a4 {[%clk 0:01:47.5]} 26... e4
{[%clk 0:02:35.3]} 27. Bf4 {[%clk 0:01:44.5]} 27... Rf8 {[%clk 0:02:32.4]} 28.
Bd6 {[%clk 0:01:44.4]} 28... Rxd6 {[%clk 0:02:29.7]} 29. cxd6 {[%clk 0:01:44.5]}
29... Qxd6 {[%clk 0:02:31.6]} 30. b5 {[%clk 0:01:37.3]} 30... Qf4 {[%clk
0:02:29.7]} 31. Qg3 {[%clk 0:01:32.7]} 31... Qf5 {[%clk 0:02:30.6]} 32. bxa6
{[%clk 0:01:31.8]} 32... bxa6 {[%clk 0:02:32.5]} 33. h3 {[%clk 0:01:32.5]} 33...
Be5 {[%clk 0:02:29.7]} 34. Qb3 {[%clk 0:01:29.1]} 34... Qf4 {[%clk 0:02:21.1]}
35. g3 {[%clk 0:01:29]} 35... Qf5 {[%clk 0:02:21.6]} 36. Kg2 {[%clk 0:01:26.7]}
36... e3 {[%clk 0:02:19.4]} 37. Ra2 {[%clk 0:01:03.6]} 37... Qf3+ {[%clk
0:02:08.5]} 38. Kh2 {[%clk 0:00:53.5]} 38... exf2 {[%clk 0:01:37.6]} 39. Rf1
{[%clk 0:00:52.5]} 39... Bxg3# {[%clk 0:01:36.1]} 0-1